Workbook

Sheet Sheet1
A1: 2023年公开招聘高层次人才及急需紧缺人才综合素质考核成绩公示
A2: 岗位名称 | B2: 姓名 | C2: 成绩 | D2: 是否进入下一环节
A3: 马克思主义学院教师01 | B3: 刘馨懋 | C3: =VLOOKUP(B3,[1]Sheet3!$B$3:$C$30,2,FALSE) -> 87.60 | D3: 是
B4: 李举 | C4: =VLOOKUP(B4,[1]Sheet3!$B$3:$C$30,2,FALSE) -> 85.30 | D4: 是
B5: 田鋆 | C5: =VLOOKUP(B5,[1]Sheet3!$B$3:$C$30,2,) -> 85.20
B6: 朱孝兰 | C6: =VLOOKUP(B6,[1]Sheet3!$B$3:$C$30,2,FALSE) -> 81.20
B7: 陆超 | C7: =VLOOKUP(B7,[1]Sheet3!$B$3:$C$30,2,FALSE) -> 80.60
B8: 龚彩霞 | C8: =VLOOKUP(B8,[1]Sheet3!$B$3:$C$30,2,FALSE) -> 76.20
A9: 马克思主义学院教师02 | B9: 黎倩雯 | C9: =VLOOKUP(B9,[1]Sheet3!$B$3:$C$30,2,FALSE) -> 82.60 | D9: 是
B10: 庞丹 | C10: =VLOOKUP(B10,[1]Sheet3!$B$3:$C$30,2,FALSE) -> 77.20
A11: 基础教学部教师01 | B11: 贺骞 | C11: =VLOOKUP(B11,[1]Sheet3!$B$3:$C$30,2,FALSE) -> 84.60 | D11: 是
B12: 肖文杉 | C12: =VLOOKUP(B12,[1]Sheet3!$B$3:$C$30,2,FALSE) -> 83.00 | D12: 是
B13: 龙琴 | C13: =VLOOKUP(B13,[1]Sheet3!$B$3:$C$30,2,FALSE) -> 82.40 | D13: 是
B14: 赵茂鑫 | C14: =VLOOKUP(B14,[1]Sheet3!$B$3:$C$30,2,FALSE) -> 82.20
B15: 代琳 | C15: =VLOOKUP(B15,[1]Sheet3!$B$3:$C$30,2,FALSE) -> 80.40
B16: 陈桂志 | C16: =VLOOKUP(B16,[1]Sheet3!$B$3:$C$30,2,FALSE) -> 79.40
B17: 陈春丽 | C17: =VLOOKUP(B17,[1]Sheet3!$B$3:$C$30,2,FALSE) -> 76.80
B18: 贾明芳 | C18: 缺考
A19: 基础教学部教师02 | B19: 刘红霞 | C19: =VLOOKUP(B19,[1]Sheet3!$B$3:$C$30,2,FALSE) -> 80.70 | D19: 是
B20: 朱山山 | C20: =VLOOKUP(B20,[1]Sheet3!$B$3:$C$30,2,FALSE) -> 79.00
B21: 王雪 | C21: =VLOOKUP(B21,[1]Sheet3!$B$3:$C$30,2,FALSE) -> 79.20
A22: 基础教学部教师03 | B22: 冉然 | C22: =VLOOKUP(B22,[1]Sheet3!$B$3:$C$30,2,FALSE) -> 88.00 | D22: 是
B23: 程远菲 | C23: =VLOOKUP(B23,[1]Sheet3!$B$3:$C$30,2,FALSE) -> 81.40 | D23: 是
B24: 罗君念 | C24: =VLOOKUP(B24,[1]Sheet3!$B$3:$C$30,2,FALSE) -> 76.60
B25: 赵洪梅 | C25: =VLOOKUP(B25,[1]Sheet3!$B$3:$C$30,2,FALSE) -> 71.00
B26: 陈明光 | C26: 缺考
B27: 杨松 | C27: 缺考
A28: 基础教学部教师04 | B28: 刘欢莉 | C28: =VLOOKUP(B28,[1]Sheet3!$B$3:$C$30,2,FALSE) -> 81.20 | D28: 是
B29: 陈静 | C29: =VLOOKUP(B29,[1]Sheet3!$B$3:$C$30,2,FALSE) -> 77.20
B30: 李刚彪 | C30: 缺考
A31: 基础教学部教师05 | B31: 陈石 | C31: =VLOOKUP(B31,[1]Sheet3!$B$3:$C$30,2,FALSE) -> 80.30 | D31: 是
B32: 覃小玲 | C32: =VLOOKUP(B32,[1]Sheet3!$B$3:$C$30,2,FALSE) -> 77.40
B33: 陈玉梅 | C33: =VLOOKUP(B33,[1]Sheet3!$B$3:$C$30,2,FALSE) -> 77.00
A34: 护理系教师 | B34: 杨雨婕 | C34: 76.00 | D34: 是
A35: 临床医学系教师 | B35: 贺紫涵 | C35: 81.00 | D35: 是
B36: 冷韦韦 | C36: 76.40
B37: 徐立 | C37: 74.40
A38: 卫生管理系教师 | B38: 杜苏菲 | C38: 79.80 | D38: 是
B39: 田梦园 | C39: 79.20 | D39: 是
B40: 汪小斌 | C40: 77.20
B41: 尹从玉 | C41: 76.80
B42: 曾黎 | C42: 缺考
B43: 王芙蓉 | C43: 缺考
A44: 科研平台工作人员 | B44: 熊俊 | C44: 81.60 | D44: 是
B45: 陈江霞 | C45: 80.50
B46: 赵雪 | C46: 78.00
A47: 教务处工作人员 | B47: 何鑫兴 | C47: 86.00 | D47: 是
B48: 司马燕 | C48: 76.40
B49: 王红艳 | C49: 缺考
A50: 信息技术网络管理中心工作人员 | B50: 何璇 | C50: 80.80 | D50: 是
A51: 药学系教师 | B51: 何云 | C51: 82.20 | D51: 是
B52: 高月 | C52: 80.60 | D52: 是
B53: 辛海 | C53: 79.00 | D53: 是
B54: 曹春月 | C54: 78.00
B55: 单婷 | C55: 77.20
B56: 严俊丽 | C56: 76.40
B57: 熊新 | C57: 76.20
B58: 卢明星 | C58: 74.40
B59: 况玉 | C59: 73.30
A60: 中医系教师01 | B60: 杨雯雯 | C60: 82.40 | D60: 是
B61: 张学芬 | C61: 75.00 | D61: 是
B62: 凡蕾 | C62: 缺考
A63: 中医系教师02 | B63: 何永茂 | C63: 78.80 | D63: 是
B64: 张馨月 | C64: 76.80
B65: 蔡铭祺 | C65: 缺考
